fUSD/lending_fUSD_20240917
["ID","MTS","AMOUNT","RATE_DAILY","PERIOD"]
[338344590,1726531650619,296.28,0.00011484,2]
[338344591,1726531671858,279.02,0.00010959,2]
[338344592,1726531697536,-1100.0,0.00013,2]
[338344593,1726531697562,-300.0,0.00013284,2]
[338344594,1726531697586,-11329.87342219,0.00013285,2]
[338344598,1726531832235,-183.73744764,0.00013245,2]
[338344599,1726531832246,-150.0,0.00013285,2]
[338344600,1726531832255,-105.24237583,0.00013285,2]
[338344601,1726531832288,-44.75762417,0.00013285,2]
[338344602,1726531832298,-150.0,0.00013285,2]
[338344603,1726531832307,-150.0,0.00013285,2]
[338344604,1726531832316,-112.53407662,0.00013285,2]
[338344605,1726531832343,-37.46592338,0.00013285,2]
[338344606,1726531832352,-150.0,0.00013285,2]
[338344607,1726531832361,-422.76,0.00013318,2]
[338344608,1726531832371,-1493.98,0.00013345,2]
[338344609,1726531832380,-5.95059093,0.00013381,2]
[338344610,1726531832454,-344.40721085,0.00013381,2]
[338344613,1726531838343,-192.48219822,0.00013381,2]
[338344614,1726531838353,-250.0,0.00013385,2]
[338344615,1726531838362,-178.59,0.00013399,2]
[338344616,1726531838372,-250.0,0.00013401,2]
[338344617,1726531838381,-11.52780178,0.00013439,2]
[338344618,1726531838392,-796.44791203,0.00013439,2]
[338344619,1726531838404,-1595.41428619,0.00013439,2]
[338344620,1726531838413,-2000.0,0.00013531,2]
[338344621,1726531838423,-155.30413884,0.00013635,2]
[338344622,1726531838432,-300.0,0.00013639,2]
[338344623,1726531838441,-18486.46159858,0.0001364,2]
[338344624,1726531838452,-5200.0,0.0001364,2]
[338344625,1726531838463,-213.53840142,0.0001364,2]
[338344626,1726531838472,-301.83795045,0.00013657,2]
[338344627,1726531838483,-618.75914436,0.00013657,2]
[338344628,1726531838494,-1794.92290519,0.00013657,2]
[338344629,1726531838503,-613.69,0.00013663,2]
[338344630,1726531838512,-9635.59,0.00013699,2]
[338344631,1726531838521,-296.28,0.00013747,2]
[338344632,1726531838531,-500.0,0.00013904,2]
[338344633,1726531838540,-500.0,0.00013904,2]
[338344634,1726531838549,-499.99,0.00013917,2]
[338344635,1726531838559,-2524.92709479,0.00013918,2]
[338344636,1726531838570,-434.13169891,0.00013918,2]
[338344637,1726531838581,-3060.15071266,0.00013918,2]
[338344638,1726531838592,-170.73539364,0.00013918,2]
[338344639,1726531838601,-164.57,0.00013926,2]
[338344640,1726531838610,-150.0,0.00013999,2]
[338344641,1726531838620,-51.69460636,0.00014,2]
[338344642,1726531838634,-11640.76027901,0.00014,2]
[338344643,1726531838645,-5809.30861594,0.00014,2]
[338344644,1726531838656,-450.95372915,0.00014,2]
[338344645,1726531838667,-9864.25701456,0.00014,2]
[338344646,1726531838676,-1000.0,0.00014018,2]
[338344647,1726531838685,-150.237,0.00014144,2]
[338344648,1726531838694,-312.88,0.000147,2]
[338344649,1726531838704,-391.21861396,0.00014755,2]
[338344650,1726531838714,-211.8288254,0.0001479,2]
[338344651,1726531838723,-352.0441,0.00014796,2]
[338344652,1726531838733,-3000.0,0.000148,2]
[338344653,1726531838742,-1807.2212,0.000148,2]
[338344654,1726531838751,-211.82882534,0.00014802,2]
[338344655,1726531838760,-211.82882534,0.00014814,2]
[338344656,1726531838769,-211.82882534,0.00014827,2]
[338344657,1726531838778,-11343.44,0.00014835,2]
[338344658,1726531838787,-187.283,0.00014835,2]
[338344659,1726531838797,-211.82882534,0.00014839,2]
[338344660,1726531838806,-1511.47,0.0001485,2]
[338344661,1726531838815,-784.7035,0.0001485,2]
[338344662,1726531838823,-211.82882534,0.00014851,2]
[338344663,1726531838832,-211.82882534,0.00014863,2]
[338344664,1726531838842,-500.0,0.00014873,2]
[338344665,1726531838851,-211.82882534,0.00014876,2]
[338344666,1726531838860,-356.68,0.0001488,3]
[338344667,1726531838869,-211.82882534,0.00014888,2]
[338344668,1726531838878,-312.59548381,0.0001489,2]
[338344669,1726531838886,-701.8361,0.0001489,2]
[338344670,1726531838896,-9994.0787,0.0001489,2]
[338344671,1726531838905,-4851.72233117,0.0001489,2]
[338344673,1726531838917,-1079.34910173,0.0001489,2]
[338344675,1726531838927,-2969.04,0.0001489,2]
[338344676,1726531838938,-1571.48181752,0.0001489,2]
[338344677,1726531838949,-11929.18119598,0.0001489,2]
[338344678,1726531838960,-914.81898883,0.0001489,2]
[338344684,1726531840256,-5184.20181618,0.0001489,2]
[338344685,1726531840363,-1661.96238067,0.0001489,2]
[338344686,1726531840374,-1262.25643233,0.0001489,2]
[338344687,1726531840385,-2849.34631791,0.0001489,2]
[338344688,1726531840472,-65532.64501768,0.0001489,2]
[338344689,1726531840481,-335.4322,0.0001489,2]
[338344690,1726531840491,-2061.3839,0.0001489,2]
[338344691,1726531840500,-167.0338,0.000149,2]
[338344692,1726531840510,-890.0995,0.000149,2]
[338344693,1726531840519,-15585.40260445,0.000149,2]
[338344694,1726531840530,-22957.76419555,0.000149,2]
[338344695,1726531840540,-5290.2513,0.000149,2]
[338344696,1726531840550,-7790.964,0.000149,2]
[338344697,1726531840560,-168.75887935,0.000149,2]
[338344700,1726531840741,-189.15284033,0.000149,2]
[338344701,1726531840755,-159.38136408,0.000149,2]
[338344702,1726531840765,-174.16952652,0.000149,2]
[338344703,1726531840774,-211.82882534,0.000149,2]
[338344704,1726531840783,-157.63939404,0.000149,2]
[338344705,1726531840793,-420.0,0.00014948,2]
[338344706,1726531840803,-500.0,0.00014973,2]
[338344707,1726531840812,-500.0,0.00014973,2]
[338344708,1726531840822,-13325.1038362,0.0001498,3]
[338344709,1726531840831,-151.48,0.0001498,2]
[338344710,1726531840840,-14009.4731121,0.0001499,3]
[338344711,1726531840852,-1032.75,0.0001499,3]
[338344712,1726531840863,-18270.5364784,0.0001499,3]
[338344713,1726531840872,-86033.10263446,0.0001499,3]
[338344714,1726531841228,-1244.70187367,0.0001499,3]
[338344715,1726531841239,-99273.64919887,0.0001499,3]
[338344716,1726531841249,-64593.56294233,0.0001499,3]
[338344717,1726531841261,-2727.62255209,0.0001499,3]
[338344718,1726531841272,-4033.05741135,0.0001499,3]
[338344719,1726531841284,-7189.86997659,0.0001499,3]
[338344720,1726531841295,-6913.23363336,0.0001499,3]
[338344723,1726531843370,-250.0,0.00013951,2]
[338344724,1726531843380,-138.98691994,0.0001469,2]
[338344725,1726531843422,-999.17709623,0.0001469,2]
[338344726,1726531843431,-2072.91571764,0.0001499,3]
[338344748,1726531846310,-19999.982619,0.0001499,3]
[338344749,1726531846322,-292.57899,0.0001499,3]
[338344750,1726531846363,-7782.53976954,0.0001499,3]
[338344751,1726531846525,-45203.37506493,0.0001499,3]
[338344752,1726531879010,500.0,0.00011164,2]
[338344753,1726531920257,500.0,0.00011164,2]
[338344754,1726531988070,811.0,0.00026,60]
[338344755,1726532166359,157.56,0.00010959,2]
[338344756,1726532236173,299.25,0.00011943,2]
[338344758,1726532410520,150.0,0.00012,2]
[338344760,1726532437128,1793.12,0.00026,60]
[338344765,1726532682511,1050.0,0.00011,2]
[338344767,1726532793975,305.33,0.00011103,2]
[338344770,1726532896284,250.0,0.00012417,2]
[338344771,1726532928046,1710.92,0.00012417,2]
[338344777,1726532933830,27465.38,0.00012381,2]
[338344784,1726533003120,150.0,0.00012381,2]
[338344785,1726533003479,150.0,0.00012381,2]
[338344786,1726533003829,150.0,0.00012381,2]
[338344787,1726533004093,150.0,0.00012381,2]
[338344788,1726533004343,150.0,0.00012381,2]
[338344789,1726533004586,94.413397,0.00012381,2]
[338344790,1726533004612,55.586603,0.00012381,2]
[338344791,1726533004824,296.0,0.00012381,2]
[338344792,1726533022955,450.0,0.00012348,2]
[338344799,1726533031416,-3201.75970489,0.00012703,2]
[338344800,1726533031476,-480.09097789,0.00012703,2]
[338344801,1726533031493,-422.96953822,0.00012703,2]
[338344802,1726533031503,-219.80793522,0.00012767,2]
[338344803,1726533031512,-300.0,0.00012799,2]
[338344804,1726533031521,-1480.33324411,0.000128,2]
[338344805,1726533031532,-891.40821027,0.000128,2]
[338344806,1726533031543,-12393.68824562,0.000128,2]
[338344807,1726533031552,-582.47,0.00012867,2]
[338344808,1726533031562,-250.0,0.0001287,2]
[338344809,1726533031571,-157.77,0.00012892,2]
[338344810,1726533031580,-332.09434147,0.00012905,2]
[338344811,1726533031591,-433.5656153,0.00012905,2]
[338344812,1726533031600,-316.51690375,0.00012905,2]
[338344813,1726533031609,-388.92563463,0.00012973,2]
[338344814,1726533031619,-500.0,0.00012973,2]
[338344815,1726533031629,-500.0,0.00012973,2]
[338344816,1726533031640,-178.27,0.0001299,2]
[338344817,1726533031650,-171.08649104,0.0001299,2]
[338344818,1726533031660,-150.0,0.00012995,2]
[338344819,1726533031673,-499.99,0.00012995,2]
[338344820,1726533031685,-851.55997,0.00012999,2]
[338344821,1726533031697,-150.0,0.00012999,2]
[338344822,1726533031707,-13238.63616378,0.00013,2]
[338344823,1726533031719,-883.54995,0.00013,2]
[338344824,1726533031730,-846.47,0.00013,2]
[338344825,1726533031741,-350.2299999,0.00013,2]
[338344826,1726533031752,-7672.79393195,0.00013,2]
[338344827,1726533031763,-462.53216332,0.00013,2]
[338344828,1726533031774,-51281.32712503,0.00013,2]
[338344829,1726533031785,-737.5985368,0.00013,2]
[338344830,1726533031795,-6271.05996395,0.00013,2]
[338344831,1726533031808,-4363.24961361,0.00013,2]
[338344832,1726533031817,-1100.0,0.00013,2]
[338344833,1726533031828,-147922.30233512,0.00013,2]
[338344834,1726533031839,-10977.721407,0.00013,2]
[338344835,1726533031852,-743.12178504,0.00013,2]
[338344836,1726533031865,-704088.62896316,0.00013,2]
[338344837,1726533031882,-10730.55001468,0.00013,2]
[338344838,1726533031895,-10909.06374531,0.00013,2]
[338344839,1726533031907,-11506.71936319,0.00013,2]
[338344840,1726533031918,-1446.52809512,0.00013,2]
[338344844,1726533037469,-461.545,0.00013,2]
[338344845,1726533037485,-287.75747,0.00013,2]
[338344846,1726533037525,-2378.0723799,0.00013,2]
[338344847,1726533037583,-27245.02591253,0.00013,2]
[338344848,1726533037641,-2477.42473158,0.00013,2]
[338344849,1726533037699,-583361.98094435,0.00013,2]
[338344850,1726533037710,-11247.48919341,0.00013,2]
[338344851,1726533037757,-5396.8,0.00013,2]
[338344852,1726533037767,-6903.18681663,0.00013,2]
[338344853,1726533037778,-17472.94587554,0.00013,2]
[338344856,1726533039474,-353650.89125571,0.00013,2]
[338344857,1726533039529,-584.36592369,0.00013,2]
[338344858,1726533039757,-400.07483383,0.00013,2]
[338344859,1726533039768,-745.83403878,0.00013,2]
[338344860,1726533039779,-5464.19112739,0.00013,2]
[338344865,1726533042550,-9283.06892592,0.00013,2]
[338344878,1726533043289,-123193.75471636,0.00013,2]
[338344879,1726533043301,-7084.32102208,0.00013,2]
[338344880,1726533043313,-5161.16,0.00013,2]
[338344881,1726533045416,-323.28424146,0.00013,2]
[338344882,1726533045473,-3698.41152261,0.00013,2]
[338344883,1726533058118,180.58,0.00010959,2]
[338344884,1726533105861,8914.3613,0.00012603,2]
[338344886,1726533226528,8836.27,0.00012433,2]
[338344887,1726533246268,157.73,0.00012514,2]
[338344888,1726533246483,157.73,0.00012521,2]
[338344889,1726533246689,157.73,0.00012528,2]
[338344890,1726533247161,157.73,0.00012535,2]
[338344891,1726533247369,157.73,0.00012542,2]
[338344892,1726533247623,157.73,0.00012549,2]
[338344893,1726533248031,157.73,0.00012556,2]
[338344894,1726533248264,157.73,0.00012563,2]
[338344895,1726533248628,157.73,0.0001257,2]
[338344896,1726533248822,157.73,0.00012577,2]
[338344897,1726533411096,303.61,0.00010885,2]
[338344898,1726533445278,250.0,0.0001258,2]
[338344902,1726533547701,5657.71,0.000126,2]
[338344904,1726533599580,1903.0,0.00026,60]
[338344905,1726533610461,248.46,0.00010959,2]
[338344906,1726533613231,258.4,0.00012532,2]
[338344907,1726533648588,500.0,0.00011164,2]
[338344908,1726533673614,500.0,0.00011164,2]
[338344910,1726533701274,-3124.64,0.00012664,2]
[338344911,1726533729561,-150.0,0.00012689,2]
[338344912,1726533729584,-9127.21,0.0001269,2]
[338344913,1726533745803,150.0,0.00012531,2]
[338344914,1726533746675,664.45,0.00012531,2]
[338344915,1726533758743,153.81,0.00012577,2]
[338344916,1726533903986,250.0,0.00012588,2]
[338344917,1726533908586,5747.34,0.00012566,2]
[338344918,1726533954690,250.0,0.00012629,2]
[338344919,1726533959048,301.62,0.00010711,2]
[338344920,1726534003452,416.59,0.00012574,2]
[338344926,1726534068650,861.76,0.00012531,2]
[338344927,1726534092084,406.75,0.00012553,2]
[338344929,1726534107177,153.08,0.00010959,2]
[338344930,1726534120770,-155.21,0.00012636,2]
[338344931,1726534120798,-1650.36635703,0.00012641,2]
[338344932,1726534120826,-1650.36635703,0.00012643,2]
[338344933,1726534120854,-732.75604716,0.00012645,2]
[338344938,1726534231552,-917.61030987,0.00012655,2]
[338344939,1726534231562,-1000.0,0.00012694,2]
[338344940,1726534231572,-487.62258751,0.00012755,2]
[338344941,1726534231608,-512.37741249,0.00012755,2]
[338344942,1726534231617,-281.75438516,0.00012836,2]
[338344943,1726534231629,-415.22091175,0.00012836,2]
[338344944,1726534231665,-1155.44470309,0.00012836,2]
[338344945,1726534231675,-304.93187982,0.00012839,2]
[338344946,1726534231686,-86.28673415,0.00012839,2]
[338344947,1726534231696,-150.0,0.00012877,2]
[338344948,1726534231705,-55.36326585,0.00012889,2]
[338344949,1726534231718,-135.28267701,0.00012889,2]
[338344950,1726534231728,-178.59,0.00012898,2]
[338344951,1726534231738,-167.27570748,0.000129,2]
[338344952,1726534231748,-185.6758451,0.000129,2]
[338344953,1726534231757,-158.39331481,0.000129,2]
[338344954,1726534231767,-176.657109,0.000129,2]
[338344955,1726534231776,-171.25223682,0.000129,2]
[338344956,1726534231785,-189.55387216,0.000129,2]
[338344957,1726534231794,-401.24603509,0.00012973,2]
[338344958,1726534231804,-301.62,0.00012975,2]
[338344959,1726534231813,-2014.30777753,0.00012989,2]
[338344960,1726534231829,-3508.99,0.00012989,2]
[338344961,1726534231841,-2204.70442374,0.00012989,2]
[338344962,1726534231853,-626.42675624,0.00012989,2]
[338344963,1726534237688,-500.0,0.00012973,2]
[338344964,1726534237698,-5945.5,0.00012989,2]
[338344965,1726534237744,-4161.11113352,0.00012989,2]
[338344966,1726534237802,-2005.64092,0.00012989,2]
[338344967,1726534237916,-729.43181902,0.00012989,2]
[338344972,1726534239605,-45542.4128972,0.00012989,2]
[338344973,1726534239726,-165102.10526792,0.00012989,2]
[338344974,1726534239737,-663.25723999,0.00012989,2]
[338344979,1726534240128,-53710.99725085,0.00012989,2]
[338344980,1726534240138,-187.283,0.00012989,2]
[338344981,1726534240148,-741.09474359,0.00012989,2]
[338344982,1726534240158,-499.99,0.00012989,2]
[338344983,1726534240168,-3736.01,0.00012989,2]
[338344984,1726534240178,-150.0,0.00012989,2]
[338344985,1726534240188,-62119.25172983,0.0001299,2]
[338344986,1726534240199,-56532.6757615,0.00013,2]
[338344987,1726534240209,-643227.86768572,0.00013,2]
[338344988,1726534240228,-308644.59859788,0.00013,2]
[338344989,1726534240239,-5257.81423663,0.00013,2]
[338344990,1726534240251,-573.16626518,0.00013,2]
[338344991,1726534240262,-629.92403475,0.00013,2]
[338344992,1726534240278,-611.11,0.00013,2]
[338344996,1726534242609,-22184.97987689,0.00013,2]
[338344997,1726534242621,-6844.10043298,0.00013,2]
[338344998,1726534242664,-482.99999997,0.00013,2]
[338344999,1726534242721,-9225.0,0.00013,2]
[338345000,1726534242733,-2151.55353911,0.00013,2]
[338345012,1726534243642,-2488.55910474,0.00013,2]
[338345013,1726534243654,-433.47888487,0.00013,2]
[338345014,1726534243665,-13423.64513516,0.00013,2]
[338345015,1726534243676,-3995.0,0.00013,2]
[338345016,1726534243687,-993.56644484,0.00013,2]
[338345020,1726534245618,-3893.8786,0.00013,2]
[338345022,1726534245630,-1148.04201315,0.00013,2]
[338345024,1726534245690,-3023.2344,0.00013,2]
[338345025,1726534245734,-577715.66387684,0.00013,2]
[338345026,1726534245745,-3064.21523206,0.00013,2]
[338345027,1726534245756,-357.60685124,0.00013,2]
[338345057,1726534486295,1050.0,0.00011,2]
[338345058,1726534501452,301.93,0.00010965,2]
[338345059,1726534611534,151.81,0.00010959,2]
[338345061,1726534673467,3093.356623,0.0001261,2]
[338345062,1726534804991,1195.54,0.00012601,2]
[338345063,1726534811553,195.03,0.00012601,2]
[338345069,1726534864818,1069.63,0.0001255,2]
[338345070,1726534868432,1680.5,0.00012592,2]
[338345118,1726534954148,500.0,0.00026,60]
[338345119,1726534954407,500.0,0.00026,60]
[338345120,1726534954655,500.0,0.00026,60]
[338345121,1726534954919,500.0,0.00026,60]
[338345122,1726534955277,500.0,0.00026,60]
[338345123,1726534955536,500.0,0.00026,60]
[338345124,1726534955863,500.0,0.00026,60]
[338345125,1726534956116,500.0,0.00026,60]
[338345126,1726534956466,500.0,0.00026,60]
[338345127,1726534956665,500.0,0.00026,60]
[338345128,1726534956930,500.0,0.00026,60]
[338345129,1726534957222,500.0,0.00026,60]
[338345130,1726534957492,500.0,0.00026,60]
[338345131,1726534957753,500.0,0.00026,60]
[338345132,1726534958036,500.0,0.00026,60]
[338345133,1726534958279,500.0,0.00026,60]
[338345134,1726534958535,500.0,0.00026,60]
[338345135,1726534958824,424.85,0.00026,60]
[338345137,1726535032112,300.47,0.0001072,2]
[338345138,1726535082839,200.0,0.00012422,2]
[338345139,1726535087182,806.11,0.00026,60]
[338345140,1726535087482,806.11,0.00026,60]
[338345141,1726535087776,806.11,0.00026,60]
[338345142,1726535088059,806.11,0.00026,60]
[338345143,1726535092460,806.11,0.00026,60]
[338345144,1726535092740,806.11,0.00026,60]
[338345145,1726535093001,806.11,0.00026,60]
[338345146,1726535093267,806.11,0.00026,60]
[338345147,1726535093536,806.11,0.00026,60]
[338345148,1726535093802,806.11,0.00026,60]
[338345149,1726535094060,806.11,0.00026,60]
[338345150,1726535094329,806.11,0.00026,60]
[338345151,1726535094605,806.11,0.00026,60]
[338345152,1726535094877,806.11,0.00026,60]
[338345153,1726535095174,806.11,0.00026,60]
[338345154,1726535095444,806.11,0.00026,60]
[338345155,1726535095739,806.11,0.00026,60]
[338345156,1726535095991,806.11,0.00026,60]
[338345157,1726535096247,806.11,0.00026,60]
[338345158,1726535096517,806.11,0.00026,60]
[338345159,1726535096780,806.11,0.00026,60]
[338345160,1726535097173,806.11,0.00026,60]
[338345161,1726535097322,806.11,0.00026,60]
[338345162,1726535097594,806.22,0.00026,60]
[338345163,1726535166075,500.0,0.00026,60]
[338345164,1726535166337,500.0,0.00026,60]
[338345165,1726535166596,310.49,0.00026,60]
[338345166,1726535204927,250.0,0.00012586,2]
[338345167,1726535208590,250.0,0.00012586,2]
[338345173,1726535364724,1036.41124609,0.00012562,2]
[338345174,1726535389890,444.31,0.00012584,2]
[338345176,1726535408966,7915.66755091,0.00012528,2]
[338345177,1726535408992,15984.33244909,0.00012528,2]
[338345191,1726535431761,-177.55,0.00012662,2]
[338345193,1726535431771,-226.4865253,0.00012662,2]
[338345195,1726535431782,-208.3034747,0.00012662,2]
[338345197,1726535431791,-800.0,0.00012662,2]
[338345198,1726535431801,-250.0,0.00012749,2]
[338345199,1726535431812,-300.0,0.00012898,2]
[338345200,1726535431823,-5294.47474023,0.00012898,2]
[338345201,1726535431835,-1151.29639897,0.00012898,2]
[338345202,1726535431844,-150.0,0.00012899,2]
[338345203,1726535431853,-167.27570747,0.000129,2]
[338345204,1726535431862,-180.76774717,0.000129,2]
[338345205,1726535431871,-158.3933148,0.000129,2]
[338345206,1726535431881,-184.18770664,0.000129,2]
[338345207,1726535431890,-176.657109,0.000129,2]
[338345208,1726535431899,-171.58134861,0.000129,2]
[338345209,1726535431908,-322.67939192,0.000129,2]
[338345210,1726535431919,-500.0,0.00012973,2]
[338345211,1726535431928,-500.0,0.00012973,2]
[338345212,1726535431938,-602.19037199,0.00012973,2]
[338345213,1726535431947,-311.32064277,0.00012973,2]
[338345214,1726535431957,-500.0,0.00012973,2]
[338345215,1726535431967,-300.47,0.00012983,2]
[338345216,1726535431976,-241.20022022,0.0001299,2]
[338345217,1726535431986,-151.56,0.0001299,2]
[338345218,1726535431995,-163.6,0.00012997,2]
[338345219,1726535432005,-150.99,0.00012998,2]
[338345220,1726535432014,-16409.14,0.00012998,2]
[338345221,1726535432024,-500.0,0.00012999,2]
[338345222,1726535432033,-432.56951627,0.00012999,2]
[338345223,1726535432042,-500.0,0.00012999,2]
[338345224,1726535432052,-192.699,0.00012999,2]
[338345225,1726535432062,-1250.89,0.00012999,2]
[338345226,1726535432072,-8541.68,0.00012999,2]
[338345227,1726535432082,-3101.93,0.00012999,2]
[338345228,1726535432091,-358807.3625646,0.00013,2]
[338345229,1726535432103,-555.14114462,0.00013,2]
[338345230,1726535432115,-5038.7342473,0.00013,2]
[338345231,1726535432126,-431060.09078126,0.00013,2]
[338345232,1726535432138,-635.59444283,0.00013,2]
[338345233,1726535432154,-28949.28439645,0.00013,2]
[338345234,1726535432167,-3641.40814063,0.00013,2]
[338345235,1726535432181,-479.16,0.00013,2]
[338345236,1726535432192,-325.89,0.00013,2]
[338345237,1726535432203,-2670.841426,0.00013,2]
[338345243,1726535437820,-500.0,0.00012973,2]
[338345244,1726535437830,-9.61289941,0.00013,2]
[338345245,1726535437844,-32041.26908758,0.00013,2]
[338345246,1726535437881,-157119.07536943,0.00013,2]
[338345247,1726535438113,-1264.25000003,0.00013,2]
[338345248,1726535438124,-3693.05223629,0.00013,2]
[338345257,1726535439829,-1249.30266498,0.00013,2]
[338345258,1726535439891,-257.884,0.00013,2]
[338345259,1726535440124,-6373.65476593,0.00013,2]
[338345260,1726535440136,-331.37356652,0.00013,2]
[338345269,1726535442806,-1383.95848256,0.00013,2]
[338345270,1726535442952,-378.703701,0.00013,2]
[338345271,1726535442965,-4143.31,0.00013,2]
[338345272,1726535442977,-443.4506406,0.00013,2]
[338345273,1726535443769,-2722.72632865,0.00013,2]
[338345274,1726535443780,-656.86101804,0.00013,2]
[338345275,1726535443791,-293.80853246,0.00013,2]
[338345276,1726535443802,-1728.53770147,0.00013,2]
[338345277,1726535443814,-450.0,0.00013,2]
[338345287,1726535445802,-3154.1894036,0.00013,2]
[338345295,1726535445875,-448305.55257833,0.00013,2]
[338345297,1726535445884,-1000.0,0.00013,2]
[338345298,1726535445893,-1100.0,0.00013,2]
[338345300,1726535445902,-5591.57134531,0.00013,2]
[338345302,1726535445911,-416.0835,0.00013,2]
[338345304,1726535445921,-416.0835,0.00013,2]
[338345306,1726535445931,-416.0835,0.00013,2]
[338345308,1726535445940,-416.08351,0.00013,2]
[338345310,1726535445949,-416.0835,0.00013,2]
[338345312,1726535445959,-416.0835,0.00013,2]
[338345314,1726535445969,-49023.00578376,0.00013088,2]
[338345316,1726535445979,-180.91,0.00013098,2]
[338345318,1726535445988,-171.58134852,0.00013122,2]
[338345320,1726535445997,-171.58134852,0.00013344,2]
[338345322,1726535446006,-230.21,0.00013384,2]
[338345324,1726535446015,-764.0,0.00013427,2]
[338345326,1726535446025,-200.0,0.00013456,2]
[338345328,1726535446034,-150.0,0.00013488,2]
[338345330,1726535446043,-1000.0,0.000135,2]
[338345332,1726535446052,-171.58134852,0.00013567,2]
[338345334,1726535446061,-150.78,0.000136,2]
[338345336,1726535446070,-171.58134852,0.00013789,2]
[338345337,1726535446079,-2488.6519036,0.000138,3]
[338345339,1726535446089,-10846.5733066,0.000139,3]
[338345342,1726535446098,-600.0,0.00013904,2]
[338345344,1726535446108,-500.0,0.00013904,2]
[338345345,1726535446117,-750.0,0.00014,4]
[338345346,1726535446127,-2000.0,0.00014,2]
[338345347,1726535446136,-171.58134852,0.00014011,2]
[338345348,1726535446145,-416.59,0.00014146,2]
[338345349,1726535446154,-171.58134852,0.00014233,2]
[338345350,1726535446164,-150.0,0.00014237,2]
[338345351,1726535446173,-800.0,0.00014244,2]
[338345352,1726535446187,-171.58134852,0.00014456,2]
[338345353,1726535446196,-171.58134852,0.00014678,2]
[338345354,1726535446205,-281.59,0.000147,2]
[338345355,1726535446215,-150.0,0.00014711,2]
[338345356,1726535446223,-150.0,0.00014734,2]
[338345357,1726535446232,-150.0,0.00014737,2]
[338345358,1726535446242,-150.0,0.00014749,2]
[338345359,1726535446250,-150.0,0.00014755,2]
[338345360,1726535446260,-150.0,0.00014762,2]
[338345361,1726535446270,-150.0,0.0001478,2]
[338345362,1726535446279,-150.0,0.00014782,2]
[338345363,1726535446288,-150.0,0.00014782,2]
[338345364,1726535446298,-1500.0,0.000148,2]
[338345365,1726535446307,-1534.52823399,0.000148,2]
[338345366,1726535446316,-150.0,0.00014812,2]
[338345367,1726535446325,-150.0,0.00014825,2]
[338345368,1726535446334,-150.0,0.00014829,2]
[338345369,1726535446343,-150.0,0.0001483,2]
[338345370,1726535446352,-150.0,0.00014846,2]
[338345371,1726535446362,-243.9125212,0.00014868,2]
[338345372,1726535446371,-150.0,0.00014878,2]
[338345373,1726535446381,-150.0,0.00014885,2]
[338345374,1726535446390,-150.0,0.000149,2]
[338345375,1726535446544,-1200.2826,0.000149,2]
[338345376,1726535446560,-171.58134852,0.000149,2]
[338345377,1726535446570,-150.0,0.00014906,2]
[338345378,1726535446580,-1500.0,0.00014918,2]
[338345379,1726535446589,-150.0,0.00014937,2]
[338345380,1726535446599,-150.0,0.00014942,2]
[338345381,1726535446608,-150.0,0.0001495,2]
[338345382,1726535446617,-151.23679885,0.00014956,2]